fUSD/lending_fUSD_20260129
["ID","MTS","AMOUNT","RATE_DAILY","PERIOD"]
[403901821,1769645319688,177.17,0.00013159,2]
[403901822,1769645353372,-6316.19,0.00013873,2]
[403901823,1769645353393,-142.73558343,0.00014394,2]
[403901824,1769645354135,-457.26441657,0.00014394,2]
[403901825,1769645354155,-300.0,0.00014914,2]
[403901826,1769645354176,-300.0,0.00015261,2]
[403901827,1769645354197,-250.0,0.00015261,2]
[403901828,1769645354219,-600.0,0.00015261,2]
[403901829,1769645354240,-250.0,0.00015956,2]
[403901830,1769645354259,-500.0,0.00016273,2]
[403901831,1769645354280,-977.0,0.00016372,2]
[403901832,1769645354301,-300.0,0.00016372,2]
[403901833,1769645354320,-433.0,0.00016372,2]
[403901834,1769645354340,-277.05796279,0.00016373,2]
[403901835,1769645355434,-490.0,0.00015875,2]
[403901836,1769645367100,-1098.614,0.00015875,2]
[403901842,1769645432211,-151.0,0.00016298,2]
[403901843,1769645432222,-151.0,0.00016298,2]
[403901844,1769645432234,-151.0,0.000163,2]
[403901845,1769645432246,-221.51654019,0.00016301,2]
[403901846,1769645432257,-390.7814341,0.00016301,2]
[403901847,1769645432268,-151.0,0.00016305,2]
[403901848,1769645432280,-151.0,0.00016305,2]
[403901849,1769645432290,-300.0,0.00016372,2]
[403901850,1769645432301,-1032.70202571,0.00016372,2]
[403901851,1769645432314,-167.29797429,0.00016372,2]
[403901852,1769645432325,-222.94203721,0.00016373,2]
[403901853,1769645432335,-500.0,0.00016373,2]
[403901854,1769645432346,-500.0,0.00016373,2]
[403901855,1769645432357,-500.0,0.00016373,2]
[403901856,1769645432377,-495.23066484,0.00016373,2]
[403901857,1769645432390,-4.76933516,0.00016373,2]
[403901858,1769645432402,-500.0,0.00016373,2]
[403901859,1769645432414,-500.0,0.00016373,2]
[403901860,1769645432425,-155.65317113,0.00016373,2]
[403901861,1769645432435,-500.0,0.00016373,2]
[403901863,1769645432446,-500.0,0.00016373,2]
[403901865,1769645432457,-500.0,0.00016373,2]
[403901867,1769645432467,-541.75073303,0.00016373,2]
[403901869,1769645432479,-500.0,0.00016373,2]
[403901871,1769645432489,-500.0,0.00016373,2]
[403901872,1769645432499,-500.0,0.00016373,2]
[403901874,1769645432509,-500.0,0.00016373,2]
[403901875,1769645432519,-500.0,0.00016373,2]
[403901876,1769645432531,-500.0,0.00016373,2]
[403901877,1769645432542,-500.0,0.00016373,2]
[403901878,1769645432552,-545.47745705,0.00016373,2]
[403901879,1769645432562,-808.75,0.00016373,2]
[403901880,1769645432573,-150.0030734,0.00016437,2]
[403901881,1769645432583,-13087.56233302,0.00016506,2]
[403901882,1769645432614,-2333.32099426,0.00016506,2]
[403901884,1769645432626,-869.09667272,0.00016506,2]
[403901887,1769645432637,-200.0,0.00016566,2]
[403901888,1769645432647,-808.75,0.00016647,2]
[403901889,1769645432657,-1084.71,0.00016778,2]
[403901890,1769645432667,-500.0,0.00016921,2]
[403901891,1769645432678,-500.0,0.00016921,2]
[403901892,1769645432688,-178.28326226,0.00016921,2]
[403901893,1769645432700,-500.0,0.00016921,2]
[403901894,1769645432712,-500.0,0.00016921,2]
[403901895,1769645432722,-500.0,0.00016921,2]
[403901896,1769645432732,-500.0,0.00016921,2]
[403901897,1769645432742,-1000.0,0.00016921,2]
[403901898,1769645432752,-500.0,0.00016921,2]
[403901899,1769645432762,-411.27458775,0.00016921,2]
[403901900,1769645432772,-500.0,0.00016921,2]
[403901901,1769645432782,-1000.0,0.00016921,2]
[403901902,1769645432791,-500.0,0.00016921,2]
[403901903,1769645432801,-1000.0,0.00016921,2]
[403901904,1769645432811,-519.79945563,0.00016921,2]
[403901905,1769645432822,-808.75,0.00016921,2]
[403901906,1769645432832,-4716.67,0.00016937,2]
[403901907,1769645432844,-967.7044278,0.00016942,2]
[403901908,1769645432857,-532.2955722,0.00016942,2]
[403901909,1769645432867,-250.0,0.00017,2]
[403901910,1769645432877,-209.40437684,0.00017098,2]
[403901911,1769645432887,-1678.30005096,0.00017109,2]
[403901912,1769645432899,-3528.14577167,0.00017109,2]
[403901913,1769645432912,-971.63417737,0.00017109,2]
[403901914,1769645432922,-150.99,0.00017109,2]
[403901915,1769645432933,-3503.16541553,0.00017109,2]
[403901916,1769645432959,-2675.17,0.00017109,2]
[403901917,1769645432971,-15359.50458447,0.00017109,2]
[403901918,1769645432981,-217.15233878,0.00017153,2]
[403901919,1769645432992,-808.75,0.00017195,2]
[403901920,1769645433006,-225.18697532,0.00017208,2]
[403901921,1769645433017,-233.51889341,0.00017263,2]
[403901922,1769645433028,-2977.76,0.00017275,2]
[403901923,1769645433038,-242.15909246,0.00017318,2]
[403901924,1769645433049,-1000.0,0.00017363,2]
[403901925,1769645433059,-251.11897888,0.00017373,2]
[403901926,1769645433070,-260.4103811,0.00017428,2]
[403901927,1769645433080,-808.75,0.00017468,2]
[403901928,1769645433091,-500.0,0.00017468,2]
[403901929,1769645433108,-267.79728294,0.00017468,2]
[403901930,1769645433119,-270.0455652,0.00017483,2]
[403901931,1769645433131,-280.03725112,0.00017538,2]
[403901932,1769645433142,-500.0,0.00017539,2]
[403901933,1769645433152,-500.0,0.00017539,2]
[403901934,1769645433162,-500.0,0.00017539,2]
[403901935,1769645433173,-500.0,0.00017539,2]
[403901936,1769645433189,-500.0,0.00017539,2]
[403901937,1769645433199,-500.0,0.00017539,2]
[403901938,1769645433210,-500.0,0.00017539,2]
[403901939,1769645433220,-500.0,0.00017539,2]
[403901940,1769645433230,-419.65912945,0.00017539,2]
[403901941,1769645433240,-500.0,0.00017539,2]
[403901942,1769645434082,-500.0,0.00017539,2]
[403901943,1769645434105,-500.0,0.00017539,2]
[403901944,1769645434128,-500.0,0.00017539,2]
[403901945,1769645434165,-500.0,0.00017539,2]
[403901946,1769645434187,-500.0,0.00017539,2]
[403901947,1769645434201,-500.0,0.00017539,2]
[403901948,1769645434211,-500.0,0.00017539,2]
[403901949,1769645434220,-500.0,0.00017539,2]
[403901950,1769645434230,-500.0,0.00017539,2]
[403901951,1769645434240,-500.0,0.00017539,2]
[403901952,1769645434250,-500.0,0.00017539,2]
[403901953,1769645434260,-500.0,0.00017539,2]
[403901954,1769645434270,-500.0,0.00017539,2]
[403901955,1769645434279,-500.0,0.00017539,2]
[403901956,1769645434288,-500.0,0.00017539,2]
[403901957,1769645434297,-500.0,0.00017539,2]
[403901958,1769645434307,-500.0,0.00017539,2]
[403901959,1769645434316,-500.0,0.00017539,2]
[403901960,1769645434326,-500.0,0.00017539,2]
[403901961,1769645434335,-500.0,0.00017539,2]
[403901962,1769645434344,-500.0,0.00017539,2]
[403901963,1769645434354,-500.0,0.00017539,2]
[403901964,1769645434363,-500.0,0.00017539,2]
[403901965,1769645434372,-500.0,0.00017539,2]
[403901966,1769645434381,-500.0,0.00017539,2]
[403901967,1769645434390,-500.0,0.00017539,2]
[403901968,1769645434399,-500.0,0.00017539,2]
[403901969,1769645434408,-500.0,0.00017539,2]
[403901970,1769645434419,-411.11152655,0.00017539,2]
[403901971,1769645434437,-2894.8251,0.0001754,2]
[403901972,1769645434452,-290.39862941,0.00017593,2]
[403901973,1769645434461,-1084.71,0.00017617,2]
[403901974,1769645434471,-301.1433787,0.00017648,2]
[403901975,1769645434480,-305.387,0.00017692,2]
[403901976,1769645434489,-2500.0,0.00017692,2]
[403901977,1769645434499,-1016.61313176,0.00017736,2]
[403901978,1769645434508,-3790.25729886,0.00017736,2]
[403901979,1769645434517,-808.8,0.00017742,2]
[403901980,1769645434527,-150.0030734,0.00017769,2]
[403901981,1769645434536,-500.0,0.00017781,2]
[403901982,1769645434545,-164.13709664,0.00017791,2]
[403901983,1769645434555,-272.41084081,0.00017791,2]
[403901984,1769645434565,-319.5578809,0.00017791,2]
[403901985,1769645434576,-500.0,0.00017791,2]
[403901986,1769645434585,-500.0,0.00017791,2]
[403901987,1769645434595,-500.0,0.00017791,2]
[403901988,1769645434604,-333.62601985,0.00017791,2]
[403901989,1769645434613,-500.0,0.00017791,2]
[403901990,1769645434622,-500.0,0.00017791,2]
[403901991,1769645434631,-500.0,0.00017791,2]
[403901992,1769645434640,-66909.63883936,0.00017792,2]
[403901993,1769645434652,-10462.23657441,0.00017792,2]
[403901994,1769645434664,-24195.46730967,0.00017792,2]
[403901995,1769645434691,-1073.40424,0.00017792,2]
[403901996,1769645434702,-532.82685681,0.00017792,2]
[403901997,1769645434714,-803.99311135,0.00017792,2]
[403901998,1769645434725,-1330.0,0.00017792,2]
[403901999,1769645434736,-355.66993725,0.00017792,2]
[403902000,1769645434751,-345.51780687,0.00017792,2]
[403902006,1769645438457,-35280.11291901,0.00017792,2]
[403902240,1769645440841,-443.1,0.00017692,2]
[403902242,1769645440852,-595.35029472,0.00017692,2]
[403902508,1769645446755,-822.78396786,0.00017692,2]
[403902516,1769645447074,-638.76573742,0.00017692,2]
[403902517,1769645447084,-2097.16883855,0.00017792,2]
[403902518,1769645447095,-1237.89901095,0.00017792,2]
[403902519,1769645447106,-32781.43411693,0.00017792,2]
[403902520,1769645447117,-8507.24236572,0.00017792,2]
[403902521,1769645447135,-547.86314549,0.00017792,2]
[403902522,1769645447146,-1051.62888184,0.00017792,2]
[403902523,1769645605878,165.96,0.000155,3]
[403902524,1769645606910,165.96,0.00015,4]
[403902525,1769645664100,-381.39356264,0.000226,120]
[403902526,1769645723819,513.0,0.00021899,120]
[403902527,1769645725192,105.60643736,0.00022994,120]
[403902528,1769646010391,-195.0,0.00016056,2]
[403902529,1769646010412,-284.0,0.00016056,2]
[403902530,1769646010433,-151.0,0.00016063,2]
[403902531,1769646010701,-151.0,0.00016063,2]
[403902532,1769646010747,-195.0,0.00016119,2]
[403902533,1769646010769,-458.36,0.000162,2]
[403902534,1769646010791,-150.05862945,0.00016207,2]
[403902535,1769646010812,-236.2271117,0.00016273,2]
[403902536,1769646010834,-300.0,0.00016372,2]
[403902537,1769646010856,-480.0,0.00016372,2]
[403902538,1769646010877,-500.0,0.00016373,2]
[403902539,1769646010900,-500.0,0.00016373,2]
[403902540,1769646010921,-500.0,0.00016373,2]
[403902541,1769646010941,-500.0,0.00016373,2]
[403902542,1769646010961,-542.83258534,0.00016373,2]
[403902543,1769646010981,-544.47711737,0.00016373,2]
[403902544,1769646011002,-500.0,0.00016373,2]
[403902545,1769646011023,-500.0,0.00016373,2]
[403902546,1769646011042,-500.0,0.00016373,2]
[403902547,1769646011063,-500.0,0.00016373,2]
[403902548,1769646011088,-500.0,0.00016373,2]
[403902549,1769646011108,-500.0,0.00016373,2]
[403902550,1769646011128,-500.0,0.00016373,2]
[403902551,1769646011148,-500.0,0.00016373,2]
[403902552,1769646011170,-500.0,0.00016373,2]
[403902553,1769646011193,-800.0,0.00016438,2]
[403902554,1769646011215,-1537.64,0.00016566,2]
[403902555,1769646011236,-236.22711168,0.00016756,2]
[403902556,1769646011258,-3213.23,0.00016808,2]
[403902557,1769646011279,-156.67,0.00016819,2]
[403902558,1769646011301,-463.7080185,0.00016921,2]
[403902559,1769646011322,-500.0,0.00016921,2]
[403902560,1769646011343,-500.0,0.00016921,2]
[403902561,1769646011365,-1000.0,0.00016921,2]
[403902562,1769646011386,-564.98374493,0.00016921,2]
[403902563,1769646011407,-500.0,0.00016921,2]
[403902564,1769646011429,-500.0,0.00016921,2]
[403902565,1769646011450,-500.0,0.00016921,2]
[403902566,1769646011471,-500.0,0.00016921,2]
[403902567,1769646011491,-236.22711168,0.00017239,2]
[403902568,1769646011511,-1195.7015665,0.00017239,2]
[403902569,1769646011533,-1140.45280065,0.00017239,2]
[403902570,1769646011555,-170.02098922,0.00017239,2]
[403902571,1769646011575,-172.11849137,0.00017239,2]
[403902572,1769646011596,-1140.4528006,0.00017312,2]
[403902573,1769646011619,-1513.0,0.00017319,2]
[403902574,1769646011640,-751.23,0.00017329,2]
[403902575,1769646011663,-751.23,0.00017329,2]
[403902576,1769646011683,-751.23,0.00017329,2]
[403902577,1769646011704,-751.23,0.00017329,2]
[403902578,1769646011726,-751.23,0.00017329,2]
[403902579,1769646011749,-190.68758857,0.00017338,2]
[403902580,1769646011770,-223.69051663,0.00017338,2]
[403902581,1769646011794,-500.0,0.00017338,2]
[403902582,1769646011819,-617.49545883,0.00017338,2]
[403902583,1769646011842,-500.0,0.00017338,2]
[403902584,1769646011864,-500.0,0.00017338,2]
[403902585,1769646011887,-241.11115265,0.00017338,2]
[403902586,1769646011912,-66742.47720433,0.00017339,2]
[403902589,1769646358828,10000.01,8e-05,2]
[403902590,1769646358853,10000.01,8e-05,2]
[403902591,1769646358879,2672.90149682,8e-05,2]
[403902592,1769646362580,1621.5555307,0.00011,2]
[403902593,1769646386339,473.9,0.00013786,2]
[403902594,1769646427356,205.0,9.8e-05,2]
[403902595,1769646454803,-2050.4479533,0.00015,2]
[403902596,1769646454822,-1215.09179142,0.00015,2]
[403902597,1769646454843,-500.0,0.0001587,2]
[403902598,1769646454865,-150.00377781,0.00015968,2]
[403902599,1769646454884,-1504.524012,0.00015968,2]
[403902600,1769646454904,-151.0,0.00016053,2]
[403902601,1769646454926,-151.0,0.00016055,2]
[403902602,1769646454946,-5.15219632,0.000162,5]
[403902604,1769646478858,2030.55,0.00013786,2]
[403902605,1769646546094,-7843.37864,0.00015978,2]
[403902606,1769646546116,-151.0,0.00016058,2]
[403902607,1769646546138,-86.14968779,0.00016059,2]
[403902608,1769646548101,-64.85031221,0.00016059,2]
[403902609,1769646548122,-151.0,0.00016069,2]
[403902610,1769646548143,-500.0,0.00016168,2]
[403902611,1769646548165,-3944.55889579,0.000162,2]
[403902616,1769646558067,-4707.95793752,0.000162,2]
[403902627,1769646631432,-151.0,0.00016076,2]
[403902628,1769646631443,-349.0,0.00016199,2]
[403902629,1769646631466,-851.0,0.00016199,2]
[403902630,1769646631475,-40.28,0.000162,2]
[403902631,1769646631487,-267.890913,0.000162,2]
[403902632,1769646631513,-6758.17104257,0.000162,2]
[403902633,1769646631522,-4994.85695598,0.000162,5]
[403902634,1769646631531,-7967.67,0.0001626,2]
[403902635,1769646631540,-150.01340367,0.00016261,2]
[403902636,1769646631549,-942.64176673,0.00016293,2]
[403902665,1769646637635,-57.35823327,0.00016293,2]
[403902666,1769646637646,-513.34463194,0.0001637,2]
[403902667,1769646637657,-658.47843359,0.0001637,2]
[403902668,1769646637675,-428.17693447,0.0001637,2]
[403902669,1769646637684,-500.0,0.00016373,2]
[403902670,1769646637694,-500.0,0.00016373,2]
[403902671,1769646637704,-500.0,0.00016373,2]
[403902672,1769646637713,-500.0,0.00016373,2]
[403902673,1769646637723,-500.0,0.00016373,2]
[403902674,1769646637733,-500.0,0.00016373,2]
[403902675,1769646637743,-500.0,0.00016373,2]
[403902676,1769646637752,-303.1127939,0.00016373,2]
[403902677,1769646637762,-500.0,0.00016373,2]
[403902678,1769646637771,-500.0,0.00016373,2]
[403902679,1769646637781,-239.451786,0.00016373,2]
[403902680,1769646637790,-500.0,0.00016373,2]
[403902681,1769646637801,-500.0,0.00016373,2]
[403902682,1769646637812,-500.0,0.00016373,2]
[403902683,1769646637822,-500.0,0.00016373,2]
[403902684,1769646637832,-500.0,0.00016373,2]
[403902685,1769646637842,-500.0,0.00016373,2]
[403902687,1769646637851,-500.0,0.00016373,2]
[403902689,1769646637861,-500.0,0.00016373,2]
[403902691,1769646637870,-348.28,0.0001642,2]
[403902693,1769646637879,-250.0,0.000165,2]
[403902695,1769646637889,-300.0,0.000165,2]
[403902697,1769646637898,-200.0,0.0001674,2]
[403902699,1769646637907,-500.0,0.00016767,2]
[403902701,1769646637917,-827.88280608,0.00016819,2]
[403902703,1769646637926,-3378.53471156,0.00016819,2]
[403902705,1769646637935,-7840.48230285,0.00016819,2]
[403902707,1769646637945,-284.95,0.00016857,2]
[403902709,1769646637954,-500.0,0.00016921,2]
[403902711,1769646637964,-500.0,0.00016921,2]
[403902713,1769646637973,-1000.0,0.00016921,2]
[403902715,1769646637982,-500.0,0.00016921,2]
[403902717,1769646637991,-500.0,0.00016921,2]
[403902719,1769646638001,-500.0,0.00016921,2]
[403902721,1769646638010,-375.92645048,0.00016921,2]
[403902723,1769646638020,-507.32533855,0.00016921,2]
[403902725,1769646638029,-500.0,0.00016921,2]
[403902727,1769646638039,-500.0,0.00016921,2]
[403902729,1769646638048,-1000.0,0.00016921,2]
[403902731,1769646638058,-1000.0,0.00016921,2]
[403902733,1769646638068,-1000.0,0.00016921,2]
[403902735,1769646638077,-500.0,0.00016921,2]
[403902737,1769646638087,-500.0,0.00016921,2]
[403902739,1769646638097,-1000.0,0.00016921,2]
[403902741,1769646638106,-500.0,0.00016921,2]
[403902743,1769646638116,-177.352,0.00016992,2]
[403902745,1769646638126,-2000.097,0.00016992,2]
[403902747,1769646638135,-193.45679474,0.00017194,2]
[403902749,1769646638145,-15826.8607367,0.00017195,2]
[403902751,1769646638154,-13214.7784,0.00017239,2]
[403902753,1769646638165,-1880.7058,0.00017239,2]
[403902755,1769646638174,-150.99,0.00017239,2]
[403902757,1769646638185,-299.99,0.00017239,4]
[403902759,1769646638194,-153.72473404,0.00017239,2]
[403902761,1769646638203,-209.40437684,0.00017328,2]
[403902763,1769646638213,-500.0,0.0001733,2]
[403902765,1769646638223,-156.58336164,0.00017338,2]
[403902767,1769646638233,-279479.41698433,0.00017339,2]
[403902773,1769646638810,-216247.77232562,0.00017339,2]
[403902774,1769646638824,-186787.03087164,0.00017339,2]
[403902776,1769646639913,-445.63,0.00017339,2]
[403902792,1769646642708,-10913.79233534,0.00017339,2]
[403902794,1769646642959,-4105.07764698,0.00017339,2]
[403902820,1769646645612,-131.83056614,0.00017339,2]
[403902821,1769646645632,-2446.55109205,0.00017339,2]
[403902848,1769646646279,-31812.06568461,0.00017339,2]
[403902849,1769647042789,165.65735805,0.00021,30]
[403902852,1769647559134,-242.96966695,0.00015402,2]
[403902854,1769647639078,-35.03033305,0.00015402,2]
[403902855,1769647639112,-166.66,0.00015402,2]
[403902856,1769647639134,-150.00354774,0.00015584,2]
[403902857,1769647639155,-166.66,0.00015726,2]
[403902858,1769647639175,-166.66,0.00016051,2]
[403902859,1769647639197,-5303.91,0.00016073,2]
[403902860,1769647639222,-216.83424591,0.000161,2]
[403902861,1769647639244,-260.53594415,0.00016113,2]
[403902862,1769647639272,-203.723939,0.00016132,2]
[403902863,1769647639293,-150.0,0.00016213,2]
[403902864,1769647639313,-349.0,0.00016372,2]
[403902865,1769647639334,-195.0,0.00016372,2]
[403902866,1769647639354,-300.0,0.00016372,2]
[403902867,1769647639377,-500.0,0.00016373,2]
[403902868,1769647639398,-500.0,0.00016373,2]
[403902869,1769647639419,-500.0,0.00016373,2]
[403902870,1769647639438,-500.0,0.00016373,2]
[403902871,1769647639458,-500.0,0.00016373,2]
[403902872,1769647639478,-500.0,0.00016373,2]
[403902873,1769647639503,-166.66,0.00016375,2]
[403902874,1769647639524,-151.0,0.00016635,2]
[403902875,1769647639545,-6.14120843,0.00016635,2]
[403902878,1769647771146,-715.273799,0.00015884,2]
[403902879,1769647771168,-151.0,0.00015992,2]
[403902880,1769647771191,-650.82,0.00015993,2]
[403902881,1769647771212,-298.06,0.00016,2]
[403902882,1769647771235,-1521.15259511,0.00016045,2]
[403902883,1769647772085,-4764.09504444,0.00016045,2]
[403902895,1769647831489,-151.0,0.00015974,2]
[403902896,1769647831498,-151.0,0.00015996,2]
[403902898,1769647831507,-141.16552937,0.00016002,2]
[403902899,1769647831518,-9.83447063,0.00016002,2]
[403902900,1769647831528,-151.0,0.00016002,2]
[403902901,1769647831537,-221.29236045,0.00016045,2]
[403902902,1769647831546,-500.0,0.00016373,2]
[403902903,1769647831556,-500.0,0.00016373,2]
[403902904,1769647831566,-500.0,0.00016373,2]
[403902905,1769647831576,-582.34950464,0.00016373,2]
[403902906,1769647831585,-354.38080813,0.00016373,2]
[403902907,1769647831596,-500.0,0.00016373,2]
[403902908,1769647831605,-300.0,0.00016634,2]
[403902909,1769647831615,-144.85879157,0.00016635,2]
[403902910,1769647831624,-508.55525493,0.00016635,2]
[403902911,1769647831634,-151.0,0.00016635,2]
[403902912,1769647831643,-154.03870792,0.00016635,2]
[403902913,1769647831653,-8153.93,0.00016645,2]
[403902914,1769647831662,-166.66,0.00016699,2]
[403902915,1769647831671,-650.82,0.00016793,2]
[403902916,1769647831682,-163.0,0.000168,2]
[403902917,1769647831691,-163.0,0.000168,2]
[403902918,1769647831705,-566.0,0.00016822,2]
[403902919,1769647831714,-209.40437684,0.00016876,2]
[403902920,1769647831724,-1114.81530258,0.00016921,2]
[403902921,1769647831733,-500.0,0.00016921,2]
[403902922,1769647831742,-1000.0,0.00016921,2]
[403902923,1769647831754,-217.15233878,0.00016931,2]
[403902925,1769647831764,-238.69085134,0.00016942,2]
[403902926,1769647831775,-225.18697532,0.00016986,2]
[403902927,1769647831786,-166.66,0.00016995,2]
[403902928,1769647831795,-250.0,0.00017,2]
[403902929,1769647831806,-166.66,0.00017023,2]
[403902931,1769647831815,-152.13538667,0.00017029,2]
[403902933,1769647831825,-2500.0,0.00017039,2]
[403902935,1769647831834,-158.19351545,0.00017039,2]
[403902937,1769647831843,-919.97641033,0.00017039,2]
[403902938,1769647831853,-7207.88456868,0.00017039,2]
[403902940,1769647831865,-2279.85668093,0.00017039,2]
[403902941,1769647831876,-3350.75057789,0.00017039,2]
[403902942,1769647831887,-1101.91311692,0.00017039,2]
[403902943,1769647831900,-579.5965676,0.00017039,2]
[403902944,1769647831910,-106.75980438,0.00017041,2]
[403902945,1769647831927,-126.75908903,0.00017041,2]
[403902946,1769647831937,-150.0,0.00017056,2]
[403902947,1769647831948,-150.0,0.00017056,2]
[403902948,1769647831958,-500.0,0.00017056,2]
[403902949,1769647831973,-500.0,0.00017056,2]
[403902950,1769647831984,-161.39213845,0.00017061,2]
[403902951,1769647831994,-425.0,0.00017067,2]
[403902952,1769647832004,-500.0,0.00017067,2]
[403902953,1769647832013,-500.0,0.00017067,2]
[403902954,1769647832024,-448.70912545,0.00017067,2]
[403902955,1769647832034,-242.15909246,0.00017096,2]
[403902956,1769647832045,-500.0,0.00017111,2]
[403902957,1769647832055,-500.0,0.00017111,2]
[403902958,1769647832064,-208.81087679,0.00017128,2]
[403902959,1769647832074,-599.88781221,0.00017128,2]
[403902960,1769647832084,-272.32290193,0.00017128,2]
[403902961,1769647832095,-206.97303344,0.00017129,2]
[403902962,1769647832104,-12838.49182746,0.00017135,2]
[403902963,1769647832114,-151.0,0.00017136,2]
[403902964,1769647832123,-500.0,0.00017138,2]
[403902965,1769647832133,-500.0,0.00017138,2]
[403902966,1769647832142,-261.06244679,0.00017138,2]
[403902967,1769647832151,-150.0,0.00017138,2]
[403902968,1769647832161,-150.0,0.00017138,2]
[403902969,1769647832171,-500.0,0.00017138,2]
[403902970,1769647832180,-500.0,0.00017138,2]
[403902971,1769647832190,-246.92,0.00017138,2]
[403902972,1769647832199,-108305.71304236,0.00017139,2]
[403902973,1769647832211,-1254.41808677,0.00017139,2]
[403902974,1769647832246,-1561.26,0.00017139,2]
[403902975,1769647832351,-863.0581325,0.00017139,2]
[403902976,1769647832362,-364.72373208,0.00017139,2]
[403902977,1769647832386,-1597.08033178,0.00017139,2]
[403902978,1769647832398,-552.02375502,0.00017139,2]
[403902982,1769647837609,-2878.12978853,0.00017139,2]
[403902983,1769647837620,-1186.0746868,0.00017139,2]
[403902984,1769647837695,-696.6099996,0.00017139,2]
[403902985,1769647837710,-1680740.90844456,0.00017139,2]
[403902986,1769647837720,-1544.12,0.00017139,2]
[403902987,1769647837730,-1544.12,0.00017139,2]
[403902988,1769647837740,-2342.85,0.00017139,2]
[403902989,1769647837750,-251.11897888,0.00017151,2]
[403902990,1769647837760,-1681.50968447,0.00017162,2]
[403902991,1769647837770,-500.0,0.00017166,2]
[403902992,1769647837790,-500.0,0.00017166,2]
[403902993,1769647837799,-260.4103811,0.00017206,2]
[403902994,1769647837809,-797.29631288,0.00017216,2]
[403902995,1769647837818,-500.0,0.0001722,2]
[403902996,1769647837827,-500.0,0.0001722,2]
[403902997,1769647837837,-12838.49182746,0.0001723,2]
[403902998,1769647837847,-1000.0,0.00017234,2]
[403902999,1769647837856,-1766.7310861,0.00017239,2]
[403903000,1769647837866,-1000.0,0.00017239,2]
[403903001,1769647837875,-270.0455652,0.00017261,2]
[403903002,1769647837885,-500.0,0.00017275,2]
[403903003,1769647837894,-500.0,0.00017275,2]
[403903004,1769647837906,-214.0,0.00017295,2]
[403903005,1769647837915,-3005.6703435,0.00017316,2]
[403903006,1769647837925,-216833.1565016,0.00017316,2]
[403903008,1769647837936,-2294.1561612,0.00017316,2]
[403903010,1769647837946,-280.03725112,0.00017316,2]
[403903012,1769647837955,-12838.49182746,0.00017326,2]
[403903014,1769647837964,-500.0,0.0001733,2]
[403903016,1769647837974,-599.58884961,0.0001733,2]
[403903018,1769647837983,-537.9533771,0.00017338,2]
[403903020,1769647837993,-500.0,0.00017338,2]
[403903022,1769647838002,-500.0,0.00017338,2]
[403903024,1769647838012,-500.0,0.00017338,2]
[403903026,1769647838021,-500.0,0.00017338,2]
[403903028,1769647838030,-500.0,0.00017338,2]
[403903030,1769647838040,-500.0,0.00017338,2]
[403903032,1769647838049,-500.0,0.00017338,2]
[403903034,1769647838059,-500.0,0.00017338,2]
[403903036,1769647838068,-500.0,0.00017338,2]
[403903038,1769647838078,-500.0,0.00017338,2]
[403903040,1769647838087,-500.0,0.00017338,2]
[403903042,1769647838097,-500.0,0.00017338,2]
[403903044,1769647838108,-500.0,0.00017338,2]
[403903046,1769647838118,-500.0,0.00017338,2]
[403903048,1769647838127,-151.0,0.00017339,2]
[403903050,1769647838136,-151.0,0.00017339,2]
[403903052,1769647838146,-161.39213843,0.00017341,2]
[403903053,1769647838157,-151.0,0.00017342,2]